Cogmind - Beta 17.1 @@@ ROGUE MODE // 2026.09.01 @ 01:19:25 Player: Finn Result: Destroyed by GA-S3Q(R) with Subdweller Machine Gun Performance ------------- Evolutions (0) 0 Regions Visited (3) 600 Robots Destroyed (44) 220 Value Destroyed (627) 627 Prototype IDs (0) 0 Alien Tech Used (0) 0 Bonus (25) 25 TOTAL SCORE: 1472 Bonus ------- Follower Combat Kills 25 Cogmind --------- Core Integrity 0/250 Matter 300/300 Energy 125/125 System Corruption 0% Temperature Cool (0) Movement Core (300) Ox5 Location -10/Subcaves Parts ------- > --- POWER (1) -------- Light Ion Engine > --- PROPULSION (2) --- (None) > --- UTILITY (2) ------ Medium Storage Unit Signal Interpreter > --- WEAPON (2) ------- Subdweller Laser > --- INVENTORY (10) --- Ion Engine Subdweller Power Source Sensor Array Improved Terrain Scanner Terrain Scan Processor Light Armor Plating Assault Rifle Shrapnel Trap Peak State ------------ > --- POWER ------------ Ion Engine > --- PROPULSION ------- Spiked Treads Wheel > --- UTILITY ---------- Medium Storage Unit Signal Interpreter > --- WEAPON ----------- Particle Gun Assault Rifle > --- INVENTORY -------- Ion Engine Light Ion Engine Wheel Flight Unit Flight Unit Improved Terrain Scanner Terrain Scan Processor Light Armor Plating EM Pulse Gun Assault Rifle [Rating: 10] Favorites ----------- Power Ion Engine Engine Ion Engine Propulsion Wheel Treads Spiked Treads Wheel Wheel Flight Unit Flight Unit Utility Medium Storage Unit Storage Medium Storage Unit Processor Signal Interpreter Weapon Assault Rifle Energy Gun Particle Gun Ballistic Gun Assault Rifle Build | -11 -10 -10 -10 ------- Run | Yrd Mat Min Sub Slots Evolved . | . . . . Power . | . . . . Propulsion . | . . . . Utility . | . . . . Weapon . | . . . . Parts Attached 23 | 8 5 2 8 Power 4 | 2 . 1 1 Engine 4 | 2 . 1 1 Core . | . . . . Reactor . | . . . . Propulsion 8 | 2 1 1 4 Treads 1 | . . . 1 Leg . | . . . . Wheel 5 | 2 1 1 1 Hover . | . . . . Flight 2 | . . . 2 Utility 3 | 1 2 . . Device . | . . . . Storage 2 | 1 1 . . Processor 1 | . 1 . . Hackware . | . . . . Protection . | . . . . Artifact . | . . . . Weapon 8 | 3 2 . 3 Energy Gun 4 | 2 1 . 1 Energy Cannon . | . . . . Ballistic Gun 4 | 1 1 . 2 Ballistic Cannon . | . . . . Launcher . | . . . . Special Weapon . | . . . . Impact Weapon . | . . . . Slashing Weapon . | . . . . Piercing Weapon . | . . . . Special Melee Weapon . | . . . . Unidentified Prototypes . | . . . . Parts Lost 12 | . . . 12 Power 2 | . . . 2 Propulsion 5 | . . . 5 Utility . | . . . . Weapon 5 | . . . 5 Highest Loss Streak 5 | . . . 5 To Critical Strikes . | . . . . Average Backups 9 | 2 8 10 9 Power 1 | . 1 2 2 Propulsion 2 | 1 3 2 1 Utility 3 | . 1 3 3 Weapon 1 | . 1 2 1 Tool/Special . | . . . . Unused Backups 11 | . 3 1 7 Power 2 | . . . 2 Propulsion 4 | . 3 1 . Utility 4 | . . . 4 Weapon 1 | . . . 1 Tool/Special . | . . . . Average Slot Usage (%) 97 | . 99 100 89 Engine 13 | . 14 14 11 Wheel 26 | . 28 28 19 Storage 14 | . 17 14 14 Processor 13 | . 10 14 14 Energy Gun 13 | . 14 14 12 Ballistic Gun 13 | . 14 14 12 Peak Build Rating 10 | 6 9 9 10 Average Rating 8 | 4 8 9 8 On Entrance 6 | . 6 9 9 Avg Prop Armor Cover (%) 4 | . . . 4 Naked Turns . | . . . . Heaviest Build 24 | 14 24 20 20 Greatest Support 26 | 26 26 26 20 Greatest Overweight (x) 5 | 1 . . 5 Average Overweight (x) . | . . . . Largest Inventory Capacity 10 | 8 10 10 10 Average Capacity 9 | 6 9 10 10 Most Carried 10 | 6 10 10 10 Average Carried 9 | 2 8 9 9 Final Capacity 10 | 8 10 10 10 Final Carried 10 | 6 10 10 8 Class Distribution -------------------- 100% | Mutant Dominant Class ---------------- Mutant | -10/Materials Mutant | -10/Mines Mutant | -10/Subcaves Resources | -11 -10 -10 -10 ----------- Run | Yrd Mat Min Sub Matter Collected 882 | 280 122 236 244 Remotely . | . . . . Salvage Created 1427 | 78 286 840 223 Parts 90 | 2 27 50 11 Haulers Intercepted . | . . . . Recyclers Shooed 6 | . . 6 . Parts Field Recycled . | . . . . Retrieved Matter . | . . . . Parts Self-Destructed 11 | . . . 11 Prevented . | . . . . Parts Restored . | . . . . Kills | -11 -10 -10 -10 ------- Run | Yrd Mat Min Sub Combat Hostiles Destroyed 15 | . 6 1 8 Guns 14 | . 6 1 7 Classes Destroyed 10 | 1 5 2 2 Worker 7 | . . 7 . Builder 3 | . 1 2 . Tunneler 7 | . . 7 . Recycler 8 | 1 . 7 . Mechanic 1 | . 1 . . Watcher 3 | . 3 . . Swarmer 6 | . 3 . 3 Grunt 4 | . 3 1 . Sentry 1 | . . . 1 Subdweller 4 | . . . 4 Best Kill Streak 7 | 1 3 7 3 Combat Bots Only 3 | . 3 1 3 Max Kills in Single Turn 1 | 1 1 1 1 Gunslinging . | . . . . Exploded . | . . . . Melee . | . . . . Uniques/NPCs Destroyed . | . . . . Combat | -11 -10 -10 -10 -------- Run | Yrd Mat Min Sub Hostile Shots Fired 148 | . 20 5 123 Missed 52 | . 8 3 41 Hits 96 | . 12 2 82 Projectile 96 | . 12 2 82 Critical Strikes 1 | . . . 1 Damage Taken 1151 | . 125 39 987 Core 264 | . 43 16 205 Absorbed by Shields . | . . . . Core Remaining (%) 100 | 100 . . . Volleys Fired 159 | 4 24 72 59 Largest 2 | 1 2 2 2 Hottest 85 | 40 85 85 85 Shots Fired 296 | 4 47 142 103 Gun 296 | 4 47 142 103 Cannon . | . . . . Launcher . | . . . . Special . | . . . . Kinetic 153 | . 24 72 57 Thermal 118 | . 17 70 31 Explosive . | . . . . Electromagnetic 25 | 4 6 . 15 Robot Hit Streak 39 | 4 8 8 39 Robot Miss Streak 4 | . 4 2 3 Penetration Max . | . . . . Secondary Targets 3 | . 1 1 1 Max Gunslinging Chain 1 | . 1 1 1 Shots Hit Robots 161 | 4 27 75 55 Core Hits 63 | 2 15 31 15 Critical Kills . | . . . . Critical Parts Destroyed 1 | . . 1 . Critical Strikes 1 | . . 1 . Destroy 1 | . . 1 . Melee Attacks . | . . . . Impact . | . . . . Slashing . | . . . . Piercing . | . . . . Sneak Attacks . | . . . . Combat Hostiles . | . . . . Follow-up Attacks . | . . . . Damage Inflicted 2271 | 53 393 1115 710 Guns 2271 | 53 393 1115 710 Cannons . | . . . . Explosions . | . . . . Melee . | . . . . Ramming . | . . . . Kinetic 918 | . 149 480 289 Thermal 1072 | . 185 635 252 Explosive . | . . . . Electromagnetic 281 | 53 59 . 169 Impact . | . . . . Slashing . | . . . . Piercing . | . . . . Highest Corruption . | . . . . Average Corruption . | . . . . Corruption Purged . | . . . . Corruption Blocked . | . . . . Overload Shots . | . . . . Overflow Damage . | . . . . Projectiles . | . . . . Explosions . | . . . . Melee . | . . . . Knockbacks . | . . . . Impact . | . . . . Kinetic . | . . . . Secondary . | . . . . Self-Inflicted Damage . | . . . . Shots . | . . . . Rammed . | . . . . Targets Rammed . | . . . . Kicked . | . . . . Crushed . | . . . . Highest Temperature 216 | . 126 216 6 Average Temperature 45 | . 37 48 6 Received Heat Transfer 252 | . 60 21 171 Siege Activations . | . . . . Martial Activations . | . . . . Shielding Activations . | . . . . Robots Disrupted . | . . . . Combat Hostiles . | . . . . Robots Corrupted . | . . . . Combat Hostiles . | . . . . Parts Fried 2 | 1 . . 1 Impact Corruptions . | . . . . Robots Melted . | . . . . Combat Hostiles . | . . . . Parts Melted 2 | . . 2 . Heat Transferred 2333 | . 444 1443 446 Parts Sabotaged . | . . . . Parts Stolen . | . . . . Parts Stripped . | . . . . Power Chain Reactions . | . . . . Alert | -11 -10 -10 -10 ------- Run | Yrd Mat Min Sub Maximum Alert Level . | . . . . Low Security (%) 100 | 100 100 100 . Level 1 . | . . . . Level 2 . | . . . . Level 3 . | . . . . Level 4 . | . . . . Level 5 . | . . . . High Security . | . . . . Max Security . | . . . . Peak Influence 70 | 5 70 55 . Initial 18 | . . 18 . Average 7 | . 9 6 . Influence Increases 550 | 5 190 200 155 Destroy 0b10 Robot/C 240 | . 120 40 80 Destroy 0b10 Robot/NC 145 | 5 25 115 . Destroy Leader 46 | . 36 10 . Allied During Kill 5 | . . 5 . Successful Hack 9 | . 9 . . Disable Machine 30 | . . 30 . Lose Combat Pursuer 75 | . . . 75 Influence Decreases 550 | 5 141 221 183 Entered New Map 47 | . . 31 16 Time Decay 433 | 5 141 190 97 Lost Part 70 | . . . 70 Squads Dispatched 3 | . 2 1 . Investigation 3 | . 2 1 . Extermination . | . . . . Reinforcement . | . . . . Assault . | . . . . Garrison . | . . . . Intercept . | . . . . Searches Triggered . | . . . . Construction Impeded . | . . . . Haulers Reinforced . | . . . . Active Scanning Responses . | . . . . Cargo Convoy Interrupts . | . . . . Stealth | -11 -10 -10 -10 --------- Run | Yrd Mat Min Sub Distress Signals . | . . . . Communications Jammed . | . . . . Distress Signals . | . . . . Times Spotted 30 | . 12 3 15 Peak Tracking Total 6 | . 3 2 6 Tactical Retreats 2 | . . . 2 Traps | -11 -10 -10 -10 ------- Run | Yrd Mat Min Sub Traps Triggered . | . . . . Indirectly . | . . . . Trap Hack Attempts . | . . . . Triggered . | . . . . Disarmed . | . . . . Reprogrammed . | . . . . Reused . | . . . . Traps Extracted . | . . . . Installed . | . . . . Triggered . | . . . . Most Traps Carried 1 | . . . 1 Machines | -11 -10 -10 -10 ---------- Run | Yrd Mat Min Sub Machines Disabled 2 | . . 2 . Max in Single Turn 1 | . . 1 . Machines Repaired . | . . . . Machines Dismantled . | . . . . Machines Sabotaged . | . . . . Overloaded Fab Kills . | . . . . Hacking | -11 -10 -10 -10 --------- Run | Yrd Mat Min Sub Machines Accessed 7 | . 5 1 1 Terminals 5 | . 5 . . Fabricators . | . . . . Repair Stations . | . . . . Recycling Units . | . . . . Scanalyzers . | . . . . Garrison Access . | . . . . Total Hacks 17 | . 11 1 5 Successful 12 | . 6 1 5 Failed 5 | . 5 . . Catastrophic . | . . . . Database Lockouts . | . . . . Manual . | . . . . Terminals 11 | . 11 . . Fabricators . | . . . . Repair Stations . | . . . . Recycling Units . | . . . . Scanalyzers . | . . . . Garrison Access . | . . . . Terminal Hacks 12 | . 6 1 5 Record 5 | . . . 5 Robot Analysis 2 | . 2 . . Open Door 1 | . . 1 . Alert Level 1 | . 1 . . Locate Traps 2 | . 2 . . Hauler Manifests 1 | . 1 . . Fabricator Hacks . | . . . . Repair Station Hacks . | . . . . Recycling Unit Hacks . | . . . . Scanalyzer . | . . . . Garrison Access Hacks . | . . . . Unauthorized Hacks . | . . . . Terminals . | . . . . Fabricators . | . . . . Repair Stations . | . . . . Recycling Units . | . . . . Scanalyzers . | . . . . Garrison Access . | . . . . Data Cores Recovered . | . . . . Used . | . . . . Hacking Detections 5 | . 5 . . Full Trace Events 2 | . 2 . . Feedback Events . | . . . . Feedback Blocked . | . . . . Robot Schematics Acquired . | . . . . Robots Built . | . . . . Authchips . | . . . . Time . | . . . . Total Robot Build Rating . | . . . . Part Schematics Acquired . | . . . . Parts Built . | . . . . Authchips . | . . . . Time . | . . . . Total Part Build Rating . | . . . . Part Studies Acquired . | . . . . Parts Repaired . | . . . . Time . | . . . . Parts Recycled . | . . . . Recycled Matter . | . . . . Retrieved Matter . | . . . . Retrieved Components . | . . . . Parts Scanalyzed . | . . . . Part Schematics Acquired . | . . . . Parts Damaged . | . . . . Bothacking | -11 -10 -10 -10 ------------ Run | Yrd Mat Min Sub Used RIF Installer . | . . . . Robots Hacked . | . . . . Non-combat . | . . . . Combat . | . . . . Robot Hacks Applied . | . . . . Relay Couplers Released . | . . . . Fabnet Peak Effective % . | . . . . Robots Rewired . | . . . . Allies Hacked . | . . . . Hacks Repelled . | . . . . Allies | -11 -10 -10 -10 -------- Run | Yrd Mat Min Sub Total Allies 2 | . . 2 . Largest Group 2 | . . 2 . Highest-Rated Group 41 | . . 41 . Highest-Rated Ally 31 | . . 31 . Total Orders . | . . . . Ally Attacks 8 | . . 8 . Total Damage 148 | . . 148 . Kills 2 | . . 2 . Allies Corrupted . | . . . . Allies Melted . | . . . . Intel | -11 -10 -10 -10 ------- Run | Yrd Mat Min Sub Active Infowar (turns) . | . . . . Robot Analysis Total 2 | . 2 . . Derelict Logs Recovered 1 | . . 1 . Drone Launches . | . . . . Drone Recoveries . | . . . . Exploration | -11 -10 -10 -10 ------------- Run | Yrd Mat Min Sub Turns Passed 4128 | 84 953 2346 745 Spaces Moved 2519 | 63 700 1238 518 Core 12 | 11 . . 1 Treads . | . . . . Legs . | . . . . Wheels 2447 | 52 700 1238 457 Hover . | . . . . Flight 60 | . . . 60 Fastest Speed 50 | 50 90 80 80 Average Speed 90 | 88 90 89 94 Slowest Speed 300 | 100 90 90 300 Overloaded Moves . | . . . . Propulsion Burnouts . | . . . . Robots Hopped . | . . . . Potential Cave-ins . | . . . . Cave-ins Triggered . | . . . . Exploration Rate (%) 54 | 5 86 99 26 Regions Visited 3 Branch Regions 2 Pre-discovered Areas 1 | . . 1 . Known Exits Taken 2 | . 1 1 . Unknown Exits Taken 1 | 1 . . . Scrap Searched 2 | . . 2 . Spaces Dug . | . . . . Terrain Destroyed . | . . . . Melee . | . . . . Projectile . | . . . . AOE . | . . . . Terrain Rammed . | . . . . Walls Destroyed . | . . . . Machines Disabled . | . . . . Actions | -11 -10 -10 -10 --------- Run | Yrd Mat Min Sub Total 4074 | 86 978 2341 669 Wait 1322 | . 233 1023 66 Move 2516 | 62 699 1237 518 Hop . | . . . . Pick Up 32 | 12 10 2 8 Fast Attach 1 | . . . 1 Attach 16 | 6 2 . 8 Detach . | . . . . Swap 11 | 2 3 2 4 Drop 13 | . 7 4 2 Fire 159 | 4 24 72 59 Melee . | . . . . Ram . | . . . . Kick . | . . . . Crush . | . . . . Escape Stasis . | . . . . Rewire 4 | . . 1 3 Trap . | . . . . Miscellaneous . | . . . . Route ------- -11/Scrapyard -10/Materials (discovered 4 exits: *Mat x2 / *Min x2) -10/Mines (discovered 3 exits: *Mat x2 / *Sub) -10/Subcaves (discovered 2 exits: *Mat / [*Rec]) History --------- Turn | Location | Event 32 | -11/Scrapyard | Discovered new exit (range 14) 85 | -11/Scrapyard | Entered Materials 318 | -10/Materials | Build established: Mutant 381 | -10/Materials | Discovered new exit (range 11) 528 | -10/Materials | Discovered new exit (range 16) 764 | -10/Materials | Discovered new exit (range 8) 770 | -10/Materials | Identified exit to Materials 1023 | -10/Materials | Discovered new exit (range 8) 1037 | -10/Materials | Identified exit to Mines 1038 | -10/Materials | Entered Mines 1042 | -10/Mines | Met a Derelict bent on vengeance 1092 | -10/Mines | Learned location of Storage (-9) 1397 | -10/Mines | Learned Materials terminal intel 1484 | -10/Mines | Discovered exit to Materials (range 13) 1521 | -10/Mines | Discovered new exit (range 6) 1524 | -10/Mines | Identified exit to Subcaves 1547 | -10/Mines | Discovered exit to Materials (range 3) 2859 | -10/Mines | Met a Derelict shopkeep closing up shop 3384 | -10/Mines | Entered Subcaves 3400 | -10/Subcaves | A swath of the cavern ceiling suddenly collapsed 3449 | -10/Subcaves | Visited Clippyterm 3452 | -10/Subcaves | Learned Factory emergency access door positions 3452 | -10/Subcaves | Learned Factory garrison access intel 3524 | -10/Subcaves | A swath of the cavern ceiling suddenly collapsed 3837 | -10/Subcaves | Discovered new exit (range 15) 3844 | -10/Subcaves | Core integrity fell below 50% 3869 | -10/Subcaves | Lost 5 parts (1p2n2w) 4005 | -10/Subcaves | Discovered new exit (range 6) 4008 | -10/Subcaves | Identified exit to Materials 4044 | -10/Subcaves | Shifting Twisted Machinery released Battle Rifle 4063 | -10/Subcaves | Shifting Twisted Machinery released Sub. Laser 4070 | -10/Subcaves | Core integrity fell below 20% 4102 | -10/Subcaves | Lost 3 parts (3w) 4129 | -10/Subcaves | Destroyed by GA-S3Q(R) with Subdweller Machine Gun Last Messages --------------- 03956_ Acquired Sub. Monowheel. 03986_ Flight Unit destroyed. 03986_ 5N-TN5(R) destroyed. 03989_ Acquired 38 matter. 03993_ Acquired 2 matter. 04005_ EXIT=FOUND 04008_ EXIT=IDENTIFIED: MATERIALS 04027_ Subatomizers dissect the Corrupted Sub. Monowheel. Battle Rifle falls loose from the Twisted Machinery. 04059_ EM Pulse Gun destroyed. Sub. Laser falls loose from the Twisted Machinery. 04063_ Assault Rifle destroyed. 04071_ Lgt. Assault Rifle destroyed. 04092_ HS-UL4(R) destroyed. 04094_ Acquired 20 matter. 04097_ Acquired Assault Rifle. 04127_ Sub. Monowheel destroyed. Map ----- +----------------------------------------------------+ | ??????????????????????###??????????????## #??? | | ???????????????????????????????????????# #??? | | ??????????????????????????#" ####### ##?? | | ???????????????????????????"" #?? | | ?????????????????????????#< #?? | | ???????????????????????????"" #?? | | ???????????????????????????" ###### ##?? | | ???????????????????????????" ???????# ## ###? | | ?????????????????????????????????????###### ## | | ?????????????????????????????????????# ##### # | | ?????????????????????????????????????# #### | | ????????????????????????????????????## ### | | ??????????????????????????????####### | | ??????????????????????????????# | | ??????????????????????????????## | | ??????????????? ##???????????# ###### | | ??????????????? ###????????### ##??###### | | ??????????????? #???????## #?# ##?# | | ???????????????" ???????##= #? ## | | ?????????????##" #???????##* ! ## | | ????????#???## " #????????# ! ## | | ?????#" #"###""" #????????# & ##? ### | | ?????? " " " ##??????## ## ##?? ### | | ???????[""""" ""#####?## #####?## ## ## | | ???????"##[### ""### ### ####### #?####?## | | ????????## ## "### @ # # #????????#" | | ???????##"" "" ## #????????##" | | ???????#"" "" #### & ! = ##????????#" | | ?????? " #" #?##%& # #########?## | | ?????? #" ### #### ##"#" ##?## | | ????? ?## R ##?## " "" #??? | | ????#### ??# #??# " " "" #?## | | ???????##???## ### #?# "" #### """#?# | | ?????????????# ####?## ## ##??#" ""#### | | ?????????????## ##?????#### ### ##???##" ""#?# | | ??????????????###?????????# #?## ##?????#""< "## | | ?????????????????????????? #??###??????## "# | | ?????????????????????????? #????????????# # | | ????????????????????????? ????????????## ## | | ????????????????????????? #?????????????#### | | ?????????????????????????# #?????????""???## | | ?????????????????????????# #?????????#"""## | | ????????????????????????? #??????????# "" | | ?????????????????????????? ???????????# "" | | ???????????????????????????? ?????????????# ## # | | ??????????????????????????????????????????# ?### | | ?????????????????????????????????????????# ???? | | ????????????????????????????????????????# ???? | | ??????????????????????????????????????? ## ????? | | ??????????????????????????????????????### ? ????? | +----------------------------------------------------+ Best States ------------- Heat Dissipation 25 Energy Generation 10 Energy Capacity 250 Matter Stores 300 Matter Capacity 300 Sight Range 16 Terrain Scan Density 10 Evasion (%) 44 Item Schematics ----------------- None Robot Schematics ------------------ None Fabricated ------------ Nothing Repaired ---------- Nothing Studied --------- None Alien Tech Used ----------------- None Achievements -------------- None Challenges ------------ None Game ------ Seed TransmissionFissionCutter Manual? 0 Play Time 00:25:11 Cumulative 26.4 hours Start 2026.09.01 @ 00:56:44 End 2026.09.01 @ 01:19:25 Sessions 1 Manual Loads 0 Difficulty Rogue Special Mode None Game No. 59 Rogue 42 Adventurer 15 Explorer 2 Win Type - Total 0 Types 0/0/0/0/0/0/0/0/0/0 Lore% 24 Gallery% 22 Achievement% 20 Wizard Run 0 Options --------- Layout 1 ASCII 0 Keyboard 0 Movement Mouse Keybinds 0 Fullscreen 1 Font 24/Smallcaps Map View 50x35 Zoom Use 0% Tactical HUD 1 Map Filters NONE Filters NONE Steam 1 RUN: 5dd7c338-434e-4230-92e6-ef78e7de061e